Workbook

Sheet DRESSAGE
A1: CHAMPIONNAT DE FRANCE SPORT ADAPTE EQUITATION
A2: 19 et 20 JUIN 2014 - LES RENES DE LA VIE - SAINT LO
A3: DRESSAGE - DIVISION 2 VETERANS
B6: Nombre de partants : | C6: =COUNTA(B8:B70) -> 11
A7: Dossard | B7: Cavalier | C7: Cheval | D7: Association | E7: Juge 1 | F7: Pénal. | G7: Juge 2 | H7: Pénal. | I7: TOTAL | J7: Classement
A8: 2 | B8: COULM Sébastien | C8: PADMA | D8: APAPSH Gournay en bray | E8: 106 | G8: 81 | I8: =(E8-F8+G8-H8)/2 -> 93.5 | J8: 3
A9: 3 | B9: DESGREE Christophe | C9: AGON 2 | D9: ASES La source | E9: 78 | G9: 79 | I9: 78.5 | J9: 8
A10: 4 | B10: HALLER François | C10: KACHEMIRE | D10: ASCETH Mulhouse | E10: 100 | G10: 111 | I10: 105.5 | J10: 2
A11: 5 | B11: MARTINS Hervé | C11: DIABOLO | D11: ASES La source | E11: 81 | G11: 82 | I11: 81.5 | J11: 7
A12: 6 | B12: MONDIN François | C12: DGUBA | D12: Les rênes de la vie (CPFA Granville) | E12: 95 | G12: 89 | I12: 92 | J12: 5
A13: 7 | B13: MOREL Joël | C13: AGON 2 | D13: Association Sportive des Vallées | E13: 108 | G13: 116 | I13: 112 | J13: 1
A14: 8 | B14: TRAVERS Patrick | C14: KABAN DU FEUGRET | D14: ASES La source | E14: 72 | G14: 83 | I14: 77.5 | J14: 9
A15: 9 | B15: LE CAM Kathie | C15: DIABOLO | D15: CLAP 22 | E15: 94 | F15: 2 | G15: 87 | H15: 2 | I15: 88.5 | J15: 6
A16: 13 | B16: BOISDRON François | C16: DGUBA | D16: ASFAA Foyer Renoir | E16: 89 | G16: 96 | I16: 92.5 | J16: 4
A17: 14 | B17: GARDIEN Nolwenn | C17: AGON 2 | D17: L'envol | E17: 80 | G17: 56 | I17: 68 | J17: 10
A18: 1 | B18: BURR Daniel | C18: KABAN DU FEUGRET | D18: ASCETH Mulhouse | E18: E | G18: E | I18: 0
I19: =(E19-F19+G19-H19)/2 -> 0
I20: 0
I21: 0
I22: 0
I23: 0
I24: 0
I25: 0
I26: 0
I27: 0
I28: 0
I29: 0
I30: 0
I31: 0
I32: 0
I33: 0
I34: 0
I35: 0
I36: 0
I37: 0
I38: 0
I39: 0
I40: 0
I41: 0
I42: 0
I43: 0
I44: 0
I45: 0
I46: 0
I47: 0
I48: 0
I49: 0
I50: 0
I51: 0
I52: 0
I53: 0
I54: 0
I55: 0
I56: 0
I57: 0
I58: 0
I59: 0
I60: 0
I61: 0
I62: 0
I63: 0
I64: 0
I65: 0
I66: 0
I67: 0
I68: 0
I69: 0
I70: 0

Sheet CSO
A1: CHAMPIONNAT DE FRANCE SPORT ADAPTE EQUITATION
A2: 19 et 20 JUIN 2014 - LES RENES DE LA VIE - SAINT LO
A3: CSO - DIVISION 2 VETERANS
B6: Nombre de partants : | C6: =COUNTA(B8:B68) -> 9
A7: Dossard | B7: Cavalier | C7: Cheval | D7: Association | E7: Pénalités piste | F7: Note style | G7: TOTAL | H7: Classement
A8: 1 | B8: BURR Daniel | C8: KABAN DU FEUGRET | D8: ASCETH Mulhouse | E8: 0 | F8: 34 | G8: =F8-E8 -> 34 | H8: 4
A9: 2 | B9: COULM Sébastien | C9: PADMA | D9: APAPSH Gournay en bray | E9: 4 | F9: 29 | G9: 25 | H9: 9
A10: 4 | B10: HALLER François | C10: KACHEMIRE | D10: ASCETH Mulhouse | E10: 0 | F10: 33 | G10: 33 | H10: 8
A11: 6 | B11: MONDIN François | C11: DGUBA | D11: Les rênes de la vie (CPFA Granville) | E11: 0 | F11: 34 | G11: 34 | H11: 4
A12: 7 | B12: MOREL Joël | C12: AGON 2 | D12: Association Sportive des Vallées | E12: 0 | F12: 35.5 | G12: 35.5 | H12: 2
A13: 10 | B13: SIMON Philippe | C13: AGON 2 | D13: ASFAA Foyer Renoir | E13: 0 | F13: 39.5 | G13: 39.5 | H13: 1
A14: 11 | B14: MATORVIEZORNAVA Frédéric | C14: HYASMINE DES MARES | D14: ASFAA Foyer Renoir | E14: 0 | F14: 34 | G14: 34 | H14: 4
A15: 12 | B15: REAU Patrick | C15: DGUBA | D15: ASFAA Foyer Renoir | E15: 0 | F15: 34 | G15: 34 | H15: 4
A16: 14 | B16: GARDIEN Nolwenn | C16: AGON 2 | D16: L'envol | E16: 0 | F16: 34.5 | G16: 34.5 | H16: 3
G17: =F17-E17 -> 0
G18: 0
G19: 0
G20: 0
G21: 0
G22: 0
G23: 0
G24: 0
G25: 0
G26: 0
G27: 0
G28: 0
G29: 0
G30: 0
G31: 0
G32: 0
G33: 0
G34: 0
G35: 0
G36: 0
G37: 0
G38: 0
G39: 0
G40: 0
G41: 0
G42: 0
G43: 0
G44: 0
G45: 0
G46: 0
G47: 0
G48: 0
G49: 0
G50: 0
G51: 0
G52: 0
G53: 0
G54: 0
G55: 0
G56: 0
G57: 0
G58: 0
G59: 0
G60: 0
G61: 0
G62: 0
G63: 0
G64: 0
G65: 0
G66: 0
G67: 0
G68: 0

Sheet CROSS
A1: CHAMPIONNAT DE FRANCE SPORT ADAPTE EQUITATION
A2: 19 et 20 JUIN 2014 - LES RENES DE LA VIE - SAINT LO
A3: CROSS - DIVISION 2 JEUNES
B6: Nombre de partants : | C6: =COUNTA(C8:C40) -> 0 | E6: Tps maxi : | F6: 83
A7: Dossard | B7: Cavalier | C7: Cheval | D7: Association | E7: Pénalités cross | F7: Temps cross | G7: Pénalités Tps | H7: Total Pénalités | I7: Note style | J7: TOTAL | K7: Classement
G8: =IF(($F$6-F8)>15,10,IF(($F$6-F8)<0,($F$6-F8)*-0.5,0)) -> 10 | H8: =E8+G8 -> 10 | J8: =I8-H8 -> -10
G9: 10 | H9: 10 | J9: -10
G10: 10 | H10: 10 | J10: -10
G11: 10 | H11: 10 | J11: -10
G12: 10 | H12: 10 | J12: -10
G13: 10 | H13: 10 | J13: -10
G14: 10 | H14: 10 | J14: -10
G15: 10 | H15: 10 | J15: -10
G16: 10 | H16: 10 | J16: -10
G17: 10 | H17: 10 | J17: -10
G18: 10 | H18: 10 | J18: -10
G19: 10 | H19: 10 | J19: -10
G20: 10 | H20: 10 | J20: -10
G21: 10 | H21: 10 | J21: -10
G22: 10 | H22: 10 | J22: -10
G23: 10 | H23: 10 | J23: -10
G24: 10 | H24: 10 | J24: -10
G25: 10 | H25: 10 | J25: -10
G26: 10 | H26: 10 | J26: -10
G27: 10 | H27: 10 | J27: -10
G28: 10 | H28: 10 | J28: -10
G29: 10 | H29: 10 | J29: -10
G30: 10 | H30: 10 | J30: -10
G31: 10 | H31: 10 | J31: -10
G32: 10 | H32: 10 | J32: -10
G33: 10 | H33: 10 | J33: -10
G34: 10 | H34: 10 | J34: -10
G35: 10 | H35: 10 | J35: -10
G36: 10 | H36: 10 | J36: -10
G37: 10 | H37: 10 | J37: -10
G38: 10 | H38: 10 | J38: -10
G39: 10 | H39: 10 | J39: -10
G40: 10 | H40: 10 | J40: -10

Sheet EQUIFUN
A1: CHAMPIONNAT DE FRANCE SPORT ADAPTE EQUITATION
A2: 19 et 20 JUIN 2014 - LES RENES DE LA VIE - SAINT LO
A3: EQUIFUN - DIVISION 2 VETERANS
B6: Nombre de partants : | C6: =COUNTA(B8:B73) -> 14
A7: Dossard | B7: Cavalier | C7: Cheval | D7: Association | E7: Juge 1 | F7: Juge 2 | G7: Pénalités | H7: TOTAL | I7: Temps | J7: Classement
A8: 1 | B8: BURR Daniel | C8: KABAN DU FEUGRET | D8: ASCETH Mulhouse | E8: 72 | F8: 72 | G8: 2 | H8: =E8+F8-G8 -> 142
A9: 2 | B9: COULM Sébastien | C9: 0 | D9: APAPSH Gournay en bray | E9: 94 | F9: 99 | H9: 193
A10: 3 | B10: DESGREE Christophe | C10: PADMA | D10: ASES La source | E10: 79 | F10: 82 | G10: 2 | H10: 159
A11: 4 | B11: HALLER François | C11: KACHEMIRE | D11: ASCETH Mulhouse | E11: 78 | F11: 80 | G11: 2 | H11: 156
A12: 5 | B12: MARTINS Hervé | C12: DIABOLO | D12: ASES La source | E12: 69 | F12: 76 | G12: 2 | H12: 143
A13: 6 | B13: MONDIN François | C13: DGUBA | D13: Les rênes de la vie (CPFA Granville) | E13: 98 | F13: 98 | H13: 196
A14: 7 | B14: MOREL Joël | C14: AGON 2 | D14: Association Sportive des Vallées | E14: 81 | F14: 84 | H14: 165
A15: 8 | B15: TRAVERS Patrick | C15: KABAN DU FEUGRET | D15: ASES La source | E15: 66 | F15: 67 | G15: 4 | H15: =E15+F15-G15 -> 129
A16: 9 | B16: LE CAM Kathie | C16: 0 | D16: CLAP 22 | H16: 0 | J16: NP
A17: 10 | B17: SIMON Philippe | C17: 0 | D17: ASFAA Foyer Renoir | H17: 0 | J17: NP
A18: 11 | B18: MATORVIEZORNAVA Frédéric | C18: 0 | D18: ASFAA Foyer Renoir | H18: 0 | J18: NP
A19: 12 | B19: REAU Patrick | C19: 0 | D19: ASFAA Foyer Renoir | H19: 0 | J19: NP
A20: 13 | B20: BOISDRON François | C20: 0 | D20: ASFAA Foyer Renoir | H20: 0 | J20: NP
A21: 14 | B21: GARDIEN Nolwenn | C21: AGON 2 | D21: L'envol | E21: 92 | F21: 90 | H21: 182
H22: 0
H23: 0
H24: 0
H25: 0
H26: 0
H27: 0
H28: 0
H29: 0
H30: 0
H31: 0
H32: 0
H33: 0
H34: 0
H35: 0
H36: 0
H37: 0
H38: 0
H39: 0
H40: 0
H41: 0
H42: 0
H43: =E43+F43-G43 -> 0
H44: =E44+F44-G44 -> 0
H45: =E45+F45-G45 -> 0

Sheet ATTELAGE
A1: CHAMPIONNAT DE FRANCE SPORT ADAPTE EQUITATION
A2: 19 et 20 JUIN 2014 - LES RENES DE LA VIE - SAINT LO
A3: ATTELAGE - DIVISION 2 JEUNES
B6: Nombre de partants : | C6: =COUNTA(C8:C40) -> 0 | I6: Tps maxi : | J6: 173
A7: Dossard | B7: Cavalier | C7: Cheval | D7: Association | E7: Pénalités Piste | F7: Pénalités Marathon | G7: Note style cavalier | H7: Total 1ère Manche | I7: Pénalités Piste | J7: Pénalités Marathon | K7: Note style cavalier | L7: Temps réalisé | M7: Pénalités Temps | N7: Total 2ème Manche | O7: TOTAL FINAL | P7: Classement
H8: =G8-F8-E8 -> 0 | M8: =IF(L8>$J$6,(L8-$J$6)*0.5,0) -> 0 | N8: =K8-J8-I8-M8 -> 0 | O8: =H8+N8 -> 0
H9: 0 | M9: 0 | N9: 0 | O9: 0
H10: 0 | M10: 0 | N10: 0 | O10: 0
H11: 0 | M11: 0 | N11: 0 | O11: 0
H12: 0 | M12: 0 | N12: 0 | O12: 0
H13: 0 | M13: 0 | N13: 0 | O13: 0
H14: 0 | M14: 0 | N14: 0 | O14: 0
H15: 0 | M15: 0 | N15: 0 | O15: 0
H16: 0 | M16: 0 | N16: 0 | O16: 0
H17: 0 | M17: 0 | N17: 0 | O17: 0
H18: 0 | M18: 0 | N18: 0 | O18: 0
H19: 0 | M19: 0 | N19: 0 | O19: 0
H20: 0 | M20: 0 | N20: 0 | O20: 0
H21: 0 | M21: 0 | N21: 0 | O21: 0
H22: 0 | M22: 0 | N22: 0 | O22: 0
H23: 0 | M23: 0 | N23: 0 | O23: 0
H24: 0 | M24: 0 | N24: 0 | O24: 0
H25: 0 | M25: 0 | N25: 0 | O25: 0
H26: 0 | M26: 0 | N26: 0 | O26: 0
H27: 0 | M27: 0 | N27: 0 | O27: 0
H28: 0 | M28: 0 | N28: 0 | O28: 0
H29: 0 | M29: 0 | N29: 0 | O29: 0
H30: 0 | M30: 0 | N30: 0 | O30: 0
H31: 0 | M31: 0 | N31: 0 | O31: 0
H32: 0 | M32: 0 | N32: 0 | O32: 0
H33: 0 | M33: 0 | N33: 0 | O33: 0
H34: 0 | M34: 0 | N34: 0 | O34: 0
H35: 0 | M35: 0 | N35: 0 | O35: 0
H36: 0 | M36: 0 | N36: 0 | O36: 0
H37: 0 | M37: 0 | N37: 0 | O37: 0
H38: 0 | M38: 0 | N38: 0 | O38: 0
H39: 0 | M39: 0 | N39: 0 | O39: 0
H40: 0 | M40: 0 | N40: 0 | O40: 0

Sheet COMBINE
A1: CHAMPIONNAT DE FRANCE SPORT ADAPTE EQUITATION
A2: 19 et 20 JUIN 2014 - LES RENES DE LA VIE - SAINT LO
A3: COMBINE - DIVISION 2 VETERANS
B6: Nombre de partants : | C6: =COUNTA(B8:B12) -> 5
A7: Dossard | B7: Cavalier | C7: Cheval | D7: Association | E7: Total Dressage | F7: Total CSO | G7: TOTAL | H7: Classement
A8: 7 | B8: MOREL Joël | C8: AGON 2 | D8: Association Sportive des Vallées | E8: =IF(A8=0,0,VLOOKUP(A8,Dressage,9)) -> 112 | F8: =IF(A8=0,0,VLOOKUP(A8,CSO,7)) -> 35.5 | G8: =IF(A8=0,0,SUM(E8:F8)) -> 147.5 | H8: 1
A9: 4 | B9: HALLER François | C9: KACHEMIRE | D9: ASCETH Mulhouse | E9: =IF(A9=0,0,VLOOKUP(A9,Dressage,9)) -> 105.5 | F9: =IF(A9=0,0,VLOOKUP(A9,CSO,7)) -> 33 | G9: =IF(A9=0,0,SUM(E9:F9)) -> 138.5 | H9: 2
A10: 6 | B10: MONDIN François | C10: DGUBA | D10: Les rênes de la vie (CPFA Granville) | E10: =IF(A10=0,0,VLOOKUP(A10,Dressage,9)) -> 92 | F10: =IF(A10=0,0,VLOOKUP(A10,CSO,7)) -> 34 | G10: =IF(A10=0,0,SUM(E10:F10)) -> 126 | H10: 3
A11: 2 | B11: COULM Sébastien | C11: PADMA | D11: APAPSH Gournay en bray | E11: =IF(A11=0,0,VLOOKUP(A11,Dressage,9)) -> 93.5 | F11: =IF(A11=0,0,VLOOKUP(A11,CSO,7)) -> 25 | G11: =IF(A11=0,0,SUM(E11:F11)) -> 118.5 | H11: 4
A12: 14 | B12: GARDIEN Nolwenn | C12: AGON 2 | D12: L'envol | E12: =IF(A12=0,0,VLOOKUP(A12,Dressage,9)) -> 68 | F12: =IF(A12=0,0,VLOOKUP(A12,CSO,7)) -> 34.5 | G12: =IF(A12=0,0,SUM(E12:F12)) -> 102.5 | H12: 5

Sheet EQUIFUN CLASSEMENT
A1: CHAMPIONNAT DE FRANCE SPORT ADAPTE EQUITATION
A2: 19 et 20 JUIN 2014 - LES RENES DE LA VIE - SAINT LO
A3: EQUIFUN - DIVISION 2 VETERANS
B6: Nombre de partants : | C6: =COUNTA(B8:B21) -> 14
A7: Dossard | B7: Cavalier | C7: Cheval | D7: Association | E7: Juge 1 | F7: Juge 2 | G7: Pénalités | H7: TOTAL | I7: Temps | J7: Classement
A8: 6 | B8: MONDIN François | C8: DGUBA | D8: Les rênes de la vie (CPFA Granville) | E8: 98 | F8: 98 | H8: =E8+F8-G8 -> 196 | J8: 1
A9: 2 | B9: COULM Sébastien | C9: 0 | D9: APAPSH Gournay en bray | E9: 94 | F9: 99 | H9: 193 | J9: 2
A10: 14 | B10: GARDIEN Nolwenn | C10: AGON 2 | D10: L'envol | E10: 92 | F10: 90 | H10: 182 | J10: 3
A11: 7 | B11: MOREL Joël | C11: AGON 2 | D11: Association Sportive des Vallées | E11: 81 | F11: 84 | H11: 165 | J11: 4
A12: 3 | B12: DESGREE Christophe | C12: PADMA | D12: ASES La source | E12: 79 | F12: 82 | G12: 2 | H12: 159 | J12: 5
A13: 4 | B13: HALLER François | C13: KACHEMIRE | D13: ASCETH Mulhouse | E13: 78 | F13: 80 | G13: 2 | H13: 156 | J13: 6
A14: 5 | B14: MARTINS Hervé | C14: DIABOLO | D14: ASES La source | E14: 69 | F14: 76 | G14: 2 | H14: 143 | J14: 7
A15: 1 | B15: BURR Daniel | C15: KABAN DU FEUGRET | D15: ASCETH Mulhouse | E15: 72 | F15: 72 | G15: 2 | H15: 142 | J15: 8
A16: 8 | B16: TRAVERS Patrick | C16: KABAN DU FEUGRET | D16: ASES La source | E16: 66 | F16: 67 | G16: 4 | H16: 129 | J16: 9
A17: 9 | B17: LE CAM Kathie | C17: 0 | D17: CLAP 22 | H17: 0 | J17: NP
A18: 10 | B18: SIMON Philippe | C18: 0 | D18: ASFAA Foyer Renoir | H18: 0 | J18: NP
A19: 11 | B19: MATORVIEZORNAVA Frédéric | C19: 0 | D19: ASFAA Foyer Renoir | H19: 0 | J19: NP
A20: 12 | B20: REAU Patrick | C20: 0 | D20: ASFAA Foyer Renoir | H20: 0 | J20: NP
A21: 13 | B21: BOISDRON François | C21: 0 | D21: ASFAA Foyer Renoir | H21: 0 | J21: NP
